fUST/lending_fUST_20241031
["ID","MTS","AMOUNT","RATE_DAILY","PERIOD"]
[341082838,1730355038853,-6120.32,0.00030136,3]
[341082839,1730355038863,-500.0,0.00030136,5]
[341082840,1730355038872,-500.0,0.00030136,5]
[341082841,1730355038883,-500.0,0.00030136,2]
[341082842,1730355038894,-500.0,0.00030136,5]
[341082843,1730355038905,-500.0,0.00030136,5]
[341082845,1730355038916,-500.0,0.00030136,5]
[341082847,1730355038926,-734.5,0.00030136,5]
[341082848,1730355038937,-500.0,0.00030136,5]
[341082849,1730355038947,-500.0,0.00030136,5]
[341082850,1730355038958,-500.0,0.00030136,5]
[341082851,1730355038968,-500.0,0.00030136,5]
[341082852,1730355038978,-568.93,0.00030136,5]
[341082853,1730355038989,-500.0,0.00030136,5]
[341082854,1730355038999,-503.13611623,0.00030136,5]
[341082855,1730355039008,-500.0,0.00030136,5]
[341082856,1730355039019,-500.0,0.00030136,5]
[341082857,1730355039030,-500.0,0.00030136,5]
[341082858,1730355039043,-1146.39,0.00030136,5]
[341082859,1730355039054,-2300.99,0.00030136,5]
[341082860,1730355039064,-500.0,0.00030136,5]
[341082861,1730355039075,-500.0,0.00030136,5]
[341082862,1730355039086,-321.02055281,0.0003041,5]
[341082863,1730355039096,-500.0,0.0003041,5]
[341082864,1730355039105,-500.0,0.0003041,5]
[341082865,1730355039114,-500.0,0.0003041,5]
[341082866,1730355039126,-349.25948399,0.0003041,5]
[341082881,1730355041093,-163.40024962,0.0003041,5]
[341082882,1730355041103,-500.0,0.0003041,5]
[341082883,1730355041112,-514.71282838,0.0003041,5]
[341082884,1730355041123,-500.0,0.0003041,5]
[341082885,1730355041132,-500.0,0.0003041,5]
[341082886,1730355041142,-500.0,0.0003041,5]
[341082887,1730355041153,-500.0,0.0003041,5]
[341082888,1730355041162,-500.0,0.0003041,5]
[341082889,1730355041172,-857.58,0.0003041,5]
[341082890,1730355041182,-500.0,0.0003041,5]
[341082891,1730355041191,-500.0,0.0003041,5]
[341082892,1730355041204,-500.0,0.0003041,5]
[341082893,1730355041213,-500.0,0.0003041,5]
[341082894,1730355041223,-500.0,0.0003041,5]
[341082895,1730355041233,-500.0,0.0003041,5]
[341082896,1730355041243,-500.0,0.0003041,5]
[341082897,1730355041252,-500.0,0.0003041,5]
[341082898,1730355041261,-500.0,0.0003041,5]
[341082899,1730355041270,-1078.02,0.0003041,5]
[341082900,1730355041280,-500.0,0.0003041,5]
[341082901,1730355041289,-500.0,0.0003041,5]
[341082902,1730355041299,-500.0,0.0003041,5]
[341082903,1730355041308,-500.0,0.0003041,5]
[341082904,1730355041317,-500.0,0.0003041,5]
[341082905,1730355041328,-500.0,0.0003041,5]
[341082906,1730355041337,-3115.11,0.0003041,5]
[341082907,1730355041346,-500.0,0.0003041,5]
[341082908,1730355041356,-500.0,0.0003041,5]
[341082909,1730355041365,-500.0,0.0003041,5]
[341082910,1730355041375,-500.0,0.0003041,5]
[341082911,1730355041385,-500.0,0.0003041,5]
[341082912,1730355041394,-500.0,0.0003041,5]
[341082913,1730355041404,-1547.02,0.0003041,5]
[341082914,1730355041414,-6120.32,0.0003041,3]
[341082915,1730355041423,-537.7995926,0.0003041,5]
[341082916,1730355041432,-500.0,0.0003041,5]
[341082917,1730355041442,-500.0,0.0003041,5]
[341082918,1730355041451,-734.5,0.0003041,5]
[341082919,1730355041461,-568.93,0.0003041,5]
[341082920,1730355041471,-500.0,0.0003041,5]
[341082921,1730355041480,-500.0,0.0003041,5]
[341082922,1730355041490,-525.7005503,0.0003041,5]
[341082923,1730355041499,-1146.39,0.0003041,5]
[341082924,1730355041509,-2300.99,0.0003041,5]
[341082925,1730355041518,-500.0,0.0003041,5]
[341082926,1730355041527,-517.38237188,0.0003041,7]
[341082927,1730355041536,-500.0,0.00030473,5]
[341082928,1730355041546,-500.0,0.00030473,5]
[341082929,1730355041555,-500.0,0.00030473,5]
[341082930,1730355041564,-500.0,0.00030473,5]
[341082931,1730355041574,-500.0,0.00030473,5]
[341082932,1730355041583,-500.0,0.00030473,2]
[341082933,1730355041592,-500.0,0.00030473,5]
[341082934,1730355041602,-500.0,0.00030473,5]
[341082935,1730355041611,-240.0,0.000306,5]
[341082936,1730355041621,-7032.02112559,0.00030637,2]
[341082937,1730355041630,-500.0,0.00030673,5]
[341082938,1730355041640,-500.0,0.00030673,5]
[341082939,1730355041649,-500.0,0.00030673,5]
[341082940,1730355041659,-500.0,0.00030673,5]
[341082941,1730355041668,-500.88756841,0.00030673,5]
[341082942,1730355041677,-500.0,0.00030673,5]
[341082943,1730355041686,-500.0,0.00030682,2]
[341082944,1730355041695,-500.0,0.00030683,2]
[341082945,1730355041705,-500.0,0.00030683,2]
[341082946,1730355041714,-500.0,0.00030683,2]
[341082947,1730355041723,-159.36732876,0.00030683,2]
[341082948,1730355041733,-500.0,0.00030684,5]
[341082949,1730355041743,-500.0,0.00030684,2]
[341082950,1730355041752,-546.89964658,0.00030684,5]
[341082951,1730355041761,-500.0,0.00030684,5]
[341082952,1730355041770,-500.0,0.00030684,5]
[341082953,1730355041780,-500.0,0.00030684,5]
[341082954,1730355041789,-500.0,0.00030684,5]
[341082955,1730355041798,-500.0,0.00030684,5]
[341082956,1730355041808,-500.0,0.00030684,5]
[341082957,1730355041817,-500.0,0.00030684,5]
[341082958,1730355041829,-201.60482638,0.00030684,5]
[341082959,1730355041838,-500.0,0.00030684,5]
[341082960,1730355041847,-500.0,0.00030684,5]
[341082961,1730355041857,-500.00050627,0.00030684,5]
[341082962,1730355041866,-523.80794966,0.00030684,5]
[341082963,1730355041875,-500.0,0.00030684,5]
[341082964,1730355041886,-500.0,0.00030684,5]
[341082965,1730355041895,-500.0,0.00030684,5]
[341082966,1730355041904,-500.0,0.00030684,5]
[341082967,1730355041914,-500.0,0.00030684,5]
[341082968,1730355041923,-208.72999757,0.00030684,5]
[341082969,1730355041933,-500.0,0.00030684,5]
[341082970,1730355041943,-500.0,0.00030684,5]
[341082971,1730355041952,-500.0,0.00030684,5]
[341082972,1730355041961,-500.0,0.00030684,5]
[341082973,1730355041970,-500.0,0.00030684,5]
[341082974,1730355041980,-500.0,0.00030684,5]
[341082975,1730355041991,-500.0,0.00030684,5]
[341082976,1730355042000,-3675.21570139,0.00030684,5]
[341082977,1730355042081,-794.21429861,0.00030684,5]
[341082978,1730355042092,-500.0,0.00030684,5]
[341082979,1730355042101,-500.0,0.00030684,5]
[341082980,1730355042111,-500.0,0.00030684,5]
[341082981,1730355042123,-500.0,0.00030684,5]
[341082982,1730355042134,-500.0,0.00030684,5]
[341082983,1730355042146,-213.97446727,0.00030684,5]
[341082984,1730355042160,-286.02553273,0.00030684,5]
[341082985,1730355042169,-239.98242882,0.00030684,5]
[341082986,1730355042179,-500.0,0.00030684,5]
[341082987,1730355042190,-857.58,0.00030684,5]
[341082988,1730355042203,-600.26899977,0.00030684,5]
[341082989,1730355042212,-500.0,0.00030684,5]
[341082990,1730355042223,-500.0,0.00030684,5]
[341082991,1730355042233,-500.0,0.00030684,5]
[341082992,1730355042245,-500.0,0.00030684,5]
[341082993,1730355042254,-500.0,0.00030684,5]
[341082994,1730355042264,-500.0,0.00030684,5]
[341082995,1730355042275,-500.0,0.00030684,5]
[341082996,1730355042284,-500.0,0.00030684,5]
[341082997,1730355042295,-1078.02,0.00030684,5]
[341082998,1730355042306,-274.43867776,0.00030684,5]
[341082999,1730355042320,-225.56132224,0.00030684,5]
[341083000,1730355042330,-31.52867776,0.00030684,5]
[341083001,1730355042343,-319.2398709,0.00030684,5]
[341083002,1730355042381,-500.0,0.00030136,5]
[341083003,1730355042392,-149.23145134,0.00030684,5]
[341083004,1730355042402,-500.0,0.00030684,5]
[341083005,1730355042412,-276.5,0.00030684,5]
[341083006,1730355042423,-500.0,0.00030684,5]
[341083007,1730355042435,-500.0,0.00030684,5]
[341083008,1730355042447,-3115.11,0.00030684,5]
[341083009,1730355042457,-527.8051807,0.00030684,5]
[341083010,1730355042467,-500.0,0.00030684,5]
[341083011,1730355042477,-500.0,0.00030684,5]
[341083012,1730355042487,-500.0,0.00030684,5]
[341083013,1730355042498,-500.0,0.00030684,5]
[341083014,1730355042509,-1547.02,0.00030684,5]
[341083015,1730355042519,-6120.32,0.00030684,3]
[341083016,1730355042529,-500.0,0.00030684,5]
[341083017,1730355042540,-500.0,0.00030684,5]
[341083018,1730355042550,-734.5,0.00030684,5]
[341083019,1730355042561,-568.93,0.00030684,5]
[341083020,1730355042572,-500.0,0.00030684,5]
[341083021,1730355042581,-500.0,0.00030684,5]
[341083022,1730355042591,-1146.39,0.00030684,5]
[341083023,1730355042601,-2300.99,0.00030684,5]
[341083024,1730355042612,-166.351629,0.00030846,2]
[341083025,1730355042621,-442.93296044,0.00030852,5]
[341083026,1730355042630,-3468.98278726,0.00030857,2]
[341083027,1730355042639,-500.0,0.00030956,2]
[341083028,1730355042648,-500.0,0.00030957,7]
[341083029,1730355042657,-500.0,0.00030957,2]
[341083030,1730355042665,-500.0,0.00030958,2]
[341083031,1730355042674,-500.0,0.00030958,5]
[341083032,1730355042683,-500.0,0.00030958,5]
[341083033,1730355042693,-500.0,0.00030958,5]
[341083034,1730355042706,-386.31062201,0.00030958,5]
[341083035,1730355042717,-500.0,0.00030958,5]
[341083036,1730355042728,-500.0,0.00030958,5]
[341083037,1730355042739,-4469.43,0.00030958,5]
[341083038,1730355042752,-545.46763794,0.00030958,5]
[341083039,1730355042761,-500.0,0.00030958,5]
[341083040,1730355042770,-568.42693226,0.00030958,5]
[341083041,1730355042780,-500.0,0.00030958,5]
[341083042,1730355042791,-857.58,0.00030958,5]
[341083043,1730355042802,-500.0,0.00030958,5]
[341083044,1730355042813,-458.61364873,0.00030958,5]
[341083045,1730355042825,-500.0,0.00030958,5]
[341083046,1730355042836,-500.0,0.00030958,5]
[341083047,1730355042846,-1078.02,0.00030958,5]
[341083048,1730355042856,-500.0,0.00030958,5]
[341083049,1730355042865,-500.0,0.00030958,5]
[341083050,1730355042875,-500.0,0.00030958,5]
[341083051,1730355042884,-500.0,0.00030958,5]
[341083052,1730355042894,-3115.11,0.00030958,5]
[341083053,1730355042903,-500.0,0.00030958,5]
[341083054,1730355042912,-500.0,0.00030958,5]
[341083055,1730355042921,-500.0,0.00030958,5]
[341083056,1730355042930,-500.0,0.00030958,5]
[341083057,1730355042939,-1547.02,0.00030958,5]
[341083058,1730355042950,-6120.32,0.00030958,3]
[341083059,1730355042959,-503.94521489,0.00030958,5]
[341083060,1730355042970,-500.0,0.00030958,5]
[341083061,1730355043065,-734.5,0.00030958,5]
[341083062,1730355043078,-568.93,0.00030958,5]
[341083064,1730355043089,-500.0,0.00030958,5]
[341083065,1730355043099,-500.0,0.00030958,5]
[341083066,1730355043108,-1146.39,0.00030958,5]
[341083067,1730355043118,-2300.99,0.00030958,5]
[341083068,1730355043128,-500.0,0.00030973,5]
[341083069,1730355043138,-500.0,0.00030973,5]
[341083070,1730355043148,-500.0,0.00030973,5]
[341083072,1730355043157,-500.0,0.00030973,5]
[341083074,1730355043166,-160.12442635,0.00030973,5]
[341083075,1730355043175,-500.0,0.00030973,5]
[341083076,1730355043185,-7032.02112559,0.0003098,2]
[341083077,1730355043197,-1000.0,0.00031132,2]
[341083079,1730355043206,-175.5,0.00031165,6]
[341083080,1730355043215,-500.0,0.00031231,2]
[341083081,1730355043224,-500.0,0.00031232,2]
[341083082,1730355043233,-500.0,0.00031232,5]
[341083083,1730355043242,-500.0,0.00031232,5]
[341083084,1730355043252,-4469.43,0.00031232,5]
[341083085,1730355043260,-500.0,0.00031232,5]
[341083086,1730355043270,-500.0,0.00031232,5]
[341083087,1730355043279,-857.58,0.00031232,5]
[341083088,1730355043289,-500.0,0.00031232,5]
[341083089,1730355043299,-500.0,0.00031232,5]
[341083090,1730355043308,-1078.02,0.00031232,5]
[341083091,1730355043317,-500.0,0.00031232,5]
[341083092,1730355043328,-500.0,0.00031232,5]
[341083093,1730355043337,-3115.11,0.00031232,5]
[341083094,1730355043346,-413.37,0.00031232,5]
[341083095,1730355043355,-500.0,0.00031232,5]
[341083096,1730355043364,-500.0,0.00031232,5]
[341083097,1730355043374,-1547.02,0.00031232,5]
[341083098,1730355043383,-6120.32,0.00031232,3]
[341083099,1730355043391,-500.0,0.00031232,5]
[341083100,1730355043401,-734.5,0.00031232,5]
[341083101,1730355043410,-568.93,0.00031232,5]
[341083102,1730355043419,-500.0,0.00031232,5]
[341083103,1730355043429,-500.0,0.00031232,5]
[341083104,1730355043438,-1146.39,0.00031232,5]
[341083105,1730355043447,-2300.99,0.00031232,5]
[341083106,1730355043457,-7032.0211256,0.00031287,2]
[341083108,1730355043466,-4000.0,0.00031406,2]
[341083110,1730355043475,-191.23316749,0.00031459,2]
[341083111,1730355043484,-500.0,0.00031504,2]
[341083113,1730355043494,-529.39622796,0.00031505,2]
[341083114,1730355043503,-500.0,0.00031506,5]
[341083115,1730355043512,-500.0,0.00031506,5]
[341083116,1730355043521,-4469.43,0.00031506,5]
[341083117,1730355043531,-500.0,0.00031506,5]
[341083119,1730355043541,-500.0,0.00031506,5]
[341083120,1730355043550,-857.58,0.00031506,5]
[341083121,1730355043560,-500.0,0.00031506,5]
[341083122,1730355043569,-500.0,0.00031506,5]
[341083123,1730355043579,-1078.02,0.00031506,5]
[341083124,1730355043589,-500.0,0.00031506,5]
[341083125,1730355043598,-500.0,0.00031506,5]
[341083126,1730355043607,-3115.11,0.00031506,5]
[341083127,1730355043616,-500.0,0.00031506,5]
[341083128,1730355043626,-500.0,0.00031506,5]
[341083129,1730355043635,-1547.02,0.00031506,5]
[341083130,1730355043645,-6120.32,0.00031506,3]
[341083131,1730355043654,-500.0,0.00031506,5]
[341083132,1730355043664,-734.5,0.00031506,5]
[341083133,1730355043675,-568.93,0.00031506,5]
[341083134,1730355043685,-500.0,0.00031506,5]
[341083135,1730355043694,-500.0,0.00031506,5]
[341083136,1730355043703,-1146.39,0.00031506,5]
[341083137,1730355043714,-2300.99,0.00031506,5]
[341083138,1730355043724,-175.5,0.0003167,6]
[341083139,1730355043735,-541.90042446,0.00031779,7]
[341083140,1730355043745,-500.0,0.0003178,5]
[341083141,1730355043757,-500.0,0.0003178,5]
[341083142,1730355043768,-4469.43,0.0003178,5]
[341083143,1730355043780,-500.0,0.0003178,5]
[341083144,1730355043790,-857.58,0.0003178,5]
[341083145,1730355043802,-500.0,0.0003178,5]
[341083146,1730355043815,-618.11,0.0003178,5]
[341083147,1730355043825,-1078.02,0.0003178,5]
[341083148,1730355043835,-500.0,0.0003178,5]
[341083149,1730355043845,-500.0,0.0003178,5]
[341083150,1730355043854,-3115.11,0.0003178,5]
[341083151,1730355043864,-500.0,0.0003178,5]
[341083152,1730355043875,-500.0,0.0003178,5]
[341083153,1730355043885,-1547.02,0.0003178,5]
[341083154,1730355043895,-6120.32,0.0003178,3]
[341083155,1730355043907,-370.14034713,0.0003178,5]
[341083156,1730355043925,-500.0,0.0003041,5]
[341083157,1730355043936,-129.85965287,0.0003178,5]
[341083158,1730355043946,-734.5,0.0003178,5]
[341083159,1730355043955,-568.93,0.0003178,5]
[341083160,1730355043965,-500.0,0.0003178,5]
[341083161,1730355043975,-542.37,0.0003178,5]
[341083162,1730355043984,-1146.39,0.0003178,5]
[341083163,1730355043994,-2300.99,0.0003178,5]
[341083164,1730355044003,-500.0,0.00032,120]
[341083165,1730355044012,-500.0,0.00032054,5]
[341083166,1730355044021,-500.0,0.00032054,5]
[341083167,1730355044031,-4469.43,0.00032054,5]
[341083168,1730355044041,-500.0,0.00032054,5]
[341083169,1730355044051,-857.58,0.00032054,5]
[341083170,1730355044061,-394.25236565,0.00032054,5]
[341083171,1730355044070,-1078.02,0.00032054,5]
[341083172,1730355044080,-500.0,0.00032054,5]
[341083173,1730355044090,-500.0,0.00032054,5]
[341083174,1730355044099,-395.46674096,0.00032054,5]
[341083175,1730355044111,-2719.64325904,0.00032054,5]
[341083176,1730355044120,-500.0,0.00032054,5]
[341083177,1730355044130,-500.0,0.00032054,5]
[341083178,1730355044140,-1547.02,0.00032054,5]
[341083179,1730355044150,-6120.32,0.00032054,3]
[341083180,1730355044159,-500.0,0.00032054,5]
[341083181,1730355044168,-734.5,0.00032054,5]
[341083182,1730355044178,-568.93,0.00032054,5]
[341083183,1730355044188,-500.0,0.00032054,5]
[341083184,1730355044202,-1146.39,0.00032054,5]
[341083185,1730355044211,-2300.99,0.00032054,5]
[341083186,1730355044222,-166.351629,0.0003213,2]
[341083187,1730355044232,-151.0,0.00032137,120]
[341083188,1730355044243,-175.5,0.00032174,6]
[341083189,1730355044253,-200.0,0.000323,120]
[341083190,1730355044263,-500.0,0.00032328,5]
[341083191,1730355044272,-480.34437509,0.00032328,5]
[341083192,1730355044282,-4469.43,0.00032328,5]
[341083193,1730355044292,-151.0,0.00032328,7]
[341083194,1730355044301,-151.0,0.00032328,7]
[341083195,1730355044310,-151.0,0.00032328,7]
[341083196,1730355044319,-500.0,0.00032328,5]
[341083197,1730355044335,-151.0,0.00032328,7]
[341083198,1730355044345,-857.58,0.00032328,5]
[341083199,1730355044354,-1078.02,0.00032328,5]
[341083200,1730355044363,-500.0,0.00032328,5]
[341083201,1730355044373,-500.0,0.00032328,5]
[341083202,1730355044383,-3115.11,0.00032328,5]
[341083203,1730355044394,-151.0,0.00032328,7]
[341083204,1730355044405,-500.0,0.00032328,5]
[341083205,1730355044416,-500.0,0.00032328,5]
[341083206,1730355044427,-1547.02,0.00032328,5]
[341083207,1730355044439,-6120.32,0.00032328,3]
[341083208,1730355044449,-199.98864,0.00032328,7]
[341083209,1730355044460,-199.98864,0.00032328,7]
[341083210,1730355044470,-500.0,0.00032328,5]
[341083211,1730355044479,-734.5,0.00032328,5]
[341083212,1730355044490,-568.93,0.00032328,5]
[341083213,1730355044499,-287.812436,0.00032328,7]
[341083214,1730355044509,-151.0,0.00032328,7]
[341083215,1730355044519,-287.812436,0.00032328,7]
[341083216,1730355044530,-500.0,0.00032328,5]
[341083217,1730355044541,-1146.39,0.00032328,5]
[341083218,1730355044552,-2300.99,0.00032328,5]
[341083219,1730355044562,-465.13193065,0.0003238,2]
[341083220,1730355044572,-560.0,0.00032474,2]
[341083221,1730355044585,-151.0,0.00032575,7]
[341083222,1730355044595,-198.681319,0.00032575,7]
[341083223,1730355044605,-198.681319,0.00032575,7]
[341083224,1730355044615,-151.0,0.00032575,7]
[341083225,1730355044626,-242.633371,0.00032575,7]
[341083226,1730355044638,-151.0,0.00032575,7]
[341083227,1730355044649,-151.0,0.00032575,7]
[341083228,1730355044658,-321.25083,0.00032575,7]
[341083229,1730355044669,-321.25083,0.00032575,7]
[341083230,1730355044678,-153.0,0.00032575,2]
[341083231,1730355044687,-156.6225623,0.00032575,2]
[341083232,1730355044697,-306.0,0.00032575,2]
[341083233,1730355044707,-153.0,0.00032575,2]
[341083234,1730355044717,-302.9343744,0.00032575,2]
[341083235,1730355044728,-153.0,0.00032575,2]
[341083236,1730355044737,-210.9014947,0.00032575,2]
[341083237,1730355044746,-153.0,0.00032575,2]
[341083238,1730355044756,-302.9343744,0.00032575,2]
[341083239,1730355044765,-153.0,0.00032575,2]
[341083240,1730355044774,-153.0,0.00032575,2]
[341083241,1730355044783,-151.0,0.00032602,7]
[341083242,1730355044793,-223.842778,0.00032602,7]
[341083243,1730355044802,-500.0,0.00032602,5]
[341083244,1730355044811,-4469.43,0.00032602,5]
[341083245,1730355044820,-500.0,0.00032602,5]
[341083246,1730355044832,-168.687928,0.00032602,7]
[341083247,1730355044842,-857.58,0.00032602,5]
[341083248,1730355044852,-245.343142,0.00032602,7]
[341083249,1730355044862,-151.0,0.00032602,7]
[341083250,1730355044871,-245.343142,0.00032602,7]
[341083251,1730355044881,-1078.02,0.00032602,5]
[341083252,1730355044891,-500.0,0.00032602,5]
[341083253,1730355044901,-151.0,0.00032602,7]
[341083254,1730355044911,-500.0,0.00032602,5]
[341083255,1730355044921,-151.0,0.00032602,5]
[341083256,1730355044931,-3115.11,0.00032602,5]
[341083257,1730355044942,-500.0,0.00032602,5]
[341083258,1730355044953,-500.0,0.00032602,5]
[341083259,1730355044963,-151.0,0.00032602,7]
[341083260,1730355044972,-1547.02,0.00032602,5]
[341083261,1730355044982,-6120.32,0.00032602,3]
[341083262,1730355044991,-151.0,0.00032602,7]
[341083263,1730355045001,-176.2631948,0.00032602,5]
[341083264,1730355045011,-311.656124,0.00032602,7]
[341083265,1730355045021,-734.5,0.00032602,5]
[341083266,1730355045030,-311.656124,0.00032602,7]
[341083267,1730355045040,-568.93,0.00032602,5]
[341083268,1730355045049,-500.0,0.00032602,5]
[341083269,1730355045059,-1146.39,0.00032602,5]
[341083270,1730355045068,-2300.99,0.00032602,5]
[341083271,1730355045154,-175.5,0.00032678,7]
[341083272,1730355045165,-151.247,0.000327,14]
[341083273,1730355045175,-798.648,0.00032843,2]
[341083274,1730355045185,-191.23316749,0.00032845,2]
[341083275,1730355045196,-210.33,0.0003286,120]
[341083276,1730355045207,-758.8473208,0.0003287,2]
[341083277,1730355045219,-500.0,0.00032876,2]
[341083278,1730355045228,-189.1880836,0.00032876,5]
[341083279,1730355045238,-151.260378,0.00032876,7]
[341083280,1730355045248,-151.0,0.00032876,7]
[341083281,1730355045257,-151.0,0.00032876,7]
[341083282,1730355045267,-287.54204014,0.00032876,120]
[341083283,1730355045278,-500.0,0.00032876,5]
[341083284,1730355045288,-4469.43,0.00032876,5]
[341083285,1730355045299,-500.0,0.00032876,5]
[341083286,1730355045309,-857.58,0.00032876,5]
[341083287,1730355045319,-1078.02,0.00032876,5]
[341083288,1730355045331,-500.0,0.00032876,5]
[341083289,1730355045340,-500.0,0.00032876,5]
[341083290,1730355045351,-3115.11,0.00032876,5]
[341083291,1730355045362,-500.0,0.00032876,5]
[341083292,1730355045371,-500.0,0.00032876,5]
[341083293,1730355045382,-1547.02,0.00032876,5]
[341083294,1730355045392,-6120.32,0.00032876,3]
[341083295,1730355045402,-734.5,0.00032876,5]
[341083296,1730355045412,-568.93,0.00032876,5]
[341083297,1730355045423,-500.0,0.00032876,5]
[341083298,1730355045434,-1146.39,0.00032876,5]
[341083299,1730355045444,-2300.99,0.00032876,5]
[341083300,1730355045455,-182.86978754,0.00032877,2]
[341083301,1730355045466,-188.0,0.00032945,2]
[341083302,1730355045476,-188.0,0.00032945,2]
[341083303,1730355045485,-188.0,0.00032945,2]
[341083304,1730355045495,-188.0,0.00032945,2]
[341083305,1730355045506,-188.0,0.00032945,2]
[341083306,1730355045517,-188.0,0.00032945,2]
[341083307,1730355045527,-188.0,0.00032945,2]
[341083308,1730355045538,-188.0,0.00032945,2]
[341083309,1730355045549,-188.0,0.00032945,2]
[341083310,1730355045560,-188.0,0.00032945,2]
[341083311,1730355045570,-188.0,0.00032945,2]
[341083312,1730355045582,-188.0,0.00032945,2]
[341083313,1730355045591,-188.0,0.00032945,2]
[341083314,1730355045602,-188.0,0.00032945,2]
[341083315,1730355045612,-188.0,0.00032945,2]
[341083316,1730355045622,-188.0,0.00032945,2]
[341083317,1730355045631,-188.0,0.00032945,2]
[341083318,1730355045641,-188.0,0.00032945,2]
[341083319,1730355045651,-188.0,0.00032945,2]
[341083320,1730355045661,-188.0,0.00032945,2]
[341083321,1730355045671,-188.0,0.00032945,2]
[341083322,1730355045682,-188.0,0.00032945,2]
[341083323,1730355045693,-188.0,0.00032945,2]
[341083324,1730355045703,-188.0,0.00032945,2]
[341083325,1730355045714,-188.0,0.00032945,2]
[341083326,1730355045725,-188.0,0.00032945,2]
[341083327,1730355045735,-188.0,0.00032945,2]
[341083328,1730355045745,-188.0,0.00032945,2]
[341083329,1730355045755,-188.0,0.00032945,2]
[341083330,1730355045765,-188.0,0.00032945,2]
[341083331,1730355045775,-188.0,0.00032945,2]
[341083332,1730355045787,-188.0,0.00032945,2]
[341083333,1730355045797,-188.0,0.00032945,2]
[341083334,1730355045807,-188.0,0.00032945,2]
[341083335,1730355045817,-188.0,0.00032945,2]
[341083336,1730355045829,-188.0,0.00032945,2]
[341083337,1730355045839,-188.0,0.00032945,2]
[341083338,1730355045849,-188.0,0.00032945,2]
[341083339,1730355045860,-188.0,0.00032945,2]
[341083340,1730355045870,-188.0,0.00032945,2]
[341083341,1730355045880,-188.0,0.00032945,2]
[341083342,1730355045890,-188.0,0.00032945,2]
[341083343,1730355045900,-188.0,0.00032945,2]
[341083344,1730355045910,-188.0,0.00032945,2]
[341083345,1730355045919,-188.0,0.00032945,2]
[341083346,1730355045929,-188.0,0.00032945,2]
[341083347,1730355045940,-188.0,0.00032945,2]
[341083348,1730355045950,-188.0,0.00032945,2]
[341083349,1730355045960,-188.0,0.00032945,2]
[341083351,1730355045970,-188.0,0.00032945,2]
[341083352,1730355045981,-188.0,0.00032945,2]
[341083353,1730355045991,-188.0,0.00032945,2]
[341083354,1730355046001,-188.0,0.00032945,2]
[341083355,1730355046012,-188.0,0.00032945,2]
[341083356,1730355046024,-188.0,0.00032945,2]
[341083357,1730355046033,-188.0,0.00032945,2]
[341083358,1730355046045,-188.0,0.00032945,2]
[341083359,1730355046056,-188.0,0.00032945,2]
[341083360,1730355046066,-188.0,0.00032945,2]
[341083361,1730355046079,-188.0,0.00032945,2]
[341083362,1730355046090,-188.0,0.00032945,2]